bitfinex/quotes_ETHUSD_20250517
["timestamp","ask_amount","ask_price","bid_price","bid_amount"]
[1747459544921,4.0089824,2494.4,2494.3,7.95]
[1747459545702,4.0092282,2494.3,2494.0,1.19617458]
[1747459545905,4.0092282,2494.3,2494.1,7.949]
[1747459546190,4.00930157,2494.2,2494.1,7.949]
[1747459546987,4.00921941,2494.3,2494.1,7.949]
[1747459547204,4.00930157,2494.2,2494.1,7.949]
[1747459547719,4.00928621,2494.3,2494.1,7.949]
[1747459547917,4.00928621,2494.3,2493.9,0.8142]
[1747459548119,4.00928621,2494.3,2494.2,7.949]
[1747459548485,4.00904634,2494.4,2494.2,7.949]
[1747459548813,4.00914084,2494.3,2494.2,7.949]
[1747459549423,4.00914084,2494.3,2493.9,1.29661267]
[1747459549617,4.67557016,2494.5,2494.0,7.949]
[1747459549821,4.00921909,2494.3,2494.0,7.949]
[1747459549991,0.6667,2494.5,2493.9,1.29661267]
[1747459550191,4.00938998,2494.2,2494.1,7.949]
[1747459550593,4.00938998,2494.2,2493.9,0.8142]
[1747459550905,4.00938998,2494.2,2494.0,7.949]
[1747459551224,4.00946785,2494.1,2493.9,0.8142]
[1747459551426,4.00946785,2494.1,2494.0,7.949]
[1747459551597,4.00938516,2494.2,2494.0,7.949]
[1747459553322,4.00905435,2494.4,2494.0,9.22631322]
[1747459553515,4.00917053,2494.3,2494.0,9.22631322]
[1747459553728,4.00932426,2494.2,2494.0,9.22631322]
[1747459553894,4.00946233,2494.1,2493.9,0.8142]
[1747459554226,4.00946233,2494.1,2494.0,7.949]
[1747459554596,4.0096133,2494.1,2494.0,7.949]
[1747459554809,4.79330734,2494.4,2493.6,18.1362]
[1747459555010,4.00994466,2493.8,2493.7,7.949]
[1747459555396,4.00994466,2493.8,2493.6,17.322]
[1747459555608,4.00994466,2493.8,2493.7,7.949]
[1747459556337,4.01010546,2493.7,2493.6,17.322]
[1747459556821,4.01010546,2493.7,2493.6,25.271]
[1747459557430,4.01010546,2493.7,2493.6,17.322]
[1747459557633,4.01010546,2493.7,2493.6,25.271]
[1747459560340,4.01005266,2493.8,2493.6,25.271]
[1747459560637,4.01010546,2493.7,2493.6,25.271]
[1747459561142,4.01010546,2493.7,2493.6,17.322]
[1747459561318,4.01010546,2493.7,2493.6,25.272]
[1747459562743,4.0100341,2493.8,2493.6,25.272]
[1747459567749,4.00550916,2493.8,2493.6,25.272]
[1747459569144,4.01010546,2493.7,2493.6,25.272]
[1747459570038,4.01010546,2493.7,2493.6,17.322]
[1747459570243,4.01010546,2493.7,2493.6,25.217]
[1747459570540,4.00989288,2493.9,2493.6,25.217]
[1747459570843,4.00999792,2493.8,2493.6,25.217]
[1747459573160,4.01010546,2493.7,2493.6,17.322]
[1747459573319,4.01010546,2493.7,2493.6,25.217]
[1747459574446,4.01000101,2493.8,2493.6,25.217]
[1747459574617,4.01010546,2493.7,2493.6,25.217]
[1747459577158,4.00997351,2493.8,2493.6,25.217]
[1747459577358,4.76547351,2493.8,2493.7,7.895]
[1747459580469,6.43100242,2493.8,2493.7,7.895]
[1747459580671,4.01010546,2493.7,2493.6,17.322]
[1747459581041,4.01010546,2493.7,2493.6,25.217]
[1747459581974,4.01010546,2493.7,2493.6,17.322]
[1747459582720,4.01010546,2493.7,2493.0,0.47723596]
[1747459582721,4.01096192,2493.2,2493.0,0.47723596]
[1747459582869,4.01096192,2493.2,2493.1,7.895]
[1747459583598,4.01083581,2493.3,2493.1,7.895]
[1747459584613,4.0106127,2493.4,2493.1,7.895]
[1747459585702,11.89049461,2493.5,2493.1,9.16828887]
[1747459585703,7.88,2493.5,2493.1,9.16828887]
[1747459586008,11.89003018,2493.8,2493.3,4.01072071]
[1747459586169,7.88,2493.8,2493.4,4.01058024]
[1747459586370,4.76517031,2494.0,2493.5,4.01037462]
[1747459586575,4.76517031,2494.0,2493.6,7.896]
[1747459586576,4.00979155,2493.9,2493.6,7.896]
[1747459587388,4.00978833,2493.9,2493.6,8.6526]
[1747459588212,4.00978387,2493.9,2493.6,8.6526]
[1747459588380,4.01004674,2493.8,2493.6,7.896]
[1747459588575,4.01004674,2493.8,2493.7,7.896]
[1747459592108,4.01029866,2493.6,2493.4,0.7566]
[1747459592409,4.01029866,2493.6,2493.5,7.895]
[1747459593213,4.01013981,2493.7,2493.5,7.895]
[1747459593418,4.01013981,2493.7,2493.5,8.76016]
[1747459594113,4.00989919,2493.9,2493.5,8.76016]
[1747459594286,4.01010655,2493.7,2493.5,8.76016]
[1747459595523,4.01011722,2493.7,2493.5,8.76016]
[1747459595720,4.00978711,2493.9,2493.5,8.76016]
[1747459596019,4.00979108,2493.9,2493.6,1.35272373]
[1747459598020,4.00968954,2494.0,2493.6,1.35272373]
[1747459598324,4.00953538,2494.1,2493.7,17.318]
[1747459598522,4.00964654,2494.0,2493.7,17.318]
[1747459599825,4.00930157,2494.2,2493.7,17.318]
[1747459600001,4.00994466,2493.8,2493.7,17.318]
[1747459600183,4.00994466,2493.8,2493.7,25.196]
[1747459600790,0.7855,2494.0,2493.7,25.196]
[1747459601123,4.00986873,2493.9,2493.7,25.196]
[1747459602826,4.00970203,2494.0,2493.7,25.196]
[1747459603001,4.00985416,2493.9,2493.7,25.196]
[1747459603328,4.00949238,2494.1,2493.7,25.196]
[1747459603526,4.00962309,2494.0,2493.7,25.196]
[1747459603695,4.0097969,2493.9,2493.7,25.196]
[1747459604336,4.00994466,2493.8,2493.7,17.318]
[1747459604531,4.00994466,2493.8,2493.7,25.196]
[1747459605525,4.0098074,2493.9,2493.7,25.196]
[1747459606690,4.00970299,2494.0,2493.7,25.196]
[1747459606896,11.88535062,2494.2,2493.7,28.11664186]
[1747459607120,4.00962345,2494.0,2493.7,28.11664186]
[1747459607425,4.00906903,2494.4,2493.9,4.00968139]
[1747459607641,0.6667,2494.5,2493.9,4.00962702]
[1747459607642,4.67561066,2494.5,2493.9,4.00962702]
[1747459607828,4.67561066,2494.5,2494.0,4.83377262]
[1747459608029,4.67561066,2494.5,2494.1,0.73721093]
[1747459608217,4.00911581,2494.4,2494.2,7.878]
[1747459609143,0.6667,2494.5,2494.0,0.8243]
[1747459609304,4.00927205,2494.3,2494.1,7.877]
[1747459609505,4.00930157,2494.2,2494.1,7.877]
[1747459609705,4.00918908,2494.3,2494.1,7.877]
[1747459610836,4.00918908,2494.3,2494.2,7.877]
[1747459613841,4.00906702,2494.4,2494.2,7.877]
[1747459614140,4.00906702,2494.4,2494.0,0.8243]
[1747459614340,4.00906702,2494.4,2494.1,7.877]
[1747459615044,0.6667,2494.5,2494.1,11.8863833]
[1747459615208,4.67553195,2494.5,2494.1,7.877]
[1747459616147,0.6667,2494.5,2494.0,1.30770706]
[1747459616347,4.00941553,2494.2,2494.1,7.877]
[1747459617721,4.00923175,2494.3,2494.1,7.877]
[1747459618641,4.00930157,2494.2,2494.1,7.877]
[1747459619341,4.00909021,2494.4,2494.1,7.877]
[1747459619342,4.00921722,2494.3,2494.1,7.877]
[1747459619546,4.00921722,2494.3,2494.1,25.191]
[1747459620249,4.0090721,2494.4,2494.1,25.191]
[1747459620456,4.67558941,2494.5,2494.1,27.2014998]
[1747459620652,0.6667,2494.5,2494.2,0.7959]
[1747459621047,0.6667,2494.5,2494.2,4.80515737]
[1747459621862,0.6667,2494.5,2494.2,4.80510364]
[1747459622154,0.6667,2494.5,2494.3,4.00907114]
[1747459622320,0.6667,2494.5,2494.4,0.48049711]
[1747459623983,4.00914084,2494.3,2494.2,0.7959]
[1747459624125,4.00914084,2494.3,2494.2,7.876]
[1747459624321,4.00930157,2494.2,2494.1,17.79123596]
[1747459624522,4.00930157,2494.2,2494.1,25.66723596]
[1747459625064,4.00922841,2494.3,2494.1,25.66723596]
[1747459625627,4.00906171,2494.4,2494.1,25.66723596]
[1747459625963,0.6667,2494.5,2494.2,0.7959]
[1747459626549,0.6667,2494.5,2494.2,4.80514933]
[1747459626951,0.6667,2494.5,2494.3,4.00911043]
[1747459628248,0.6667,2494.5,2494.4,4.00898011]
[1747459628469,0.6667,2494.5,2494.4,4.78478011]
[1747459628669,0.6667,2494.5,2494.4,5.86316945]
[1747459629042,0.6667,2494.5,2494.4,6.41316945]
[1747459630961,0.6667,2494.5,2494.4,9.72318934]
[1747459631164,0.6667,2494.5,2494.4,8.6448]
[1747459631477,0.6667,2494.5,2494.4,7.869]
[1747459631645,0.6667,2494.5,2494.3,0.47723596]
[1747459631975,4.67561033,2494.5,2494.4,7.869]
[1747459633379,4.00898011,2494.4,2494.3,0.47723596]
[1747459633584,4.00898011,2494.4,2494.3,7.869]
[1747459633986,0.6667,2494.5,2494.3,10.5863]
[1747459635177,0.6667,2494.5,2494.4,4.81638011]
[1747459635483,0.6667,2494.5,2494.4,0.8074]
[1747459636576,0.6667,2494.5,2494.4,4.81638011]
[1747459638285,0.6667,2494.5,2494.4,5.29361607]
[1747459638458,0.6667,2494.5,2494.4,7.50745773]
[1747459638992,0.6667,2494.5,2494.4,9.49745773]
[1747459640105,0.6667,2494.5,2494.4,10.04745773]
[1747459643808,0.6667,2494.5,2494.4,5.48847762]
[1747459644174,0.6667,2494.5,2494.4,4.68107762]
[1747459644684,0.6667,2494.5,2494.4,8.69005773]
[1747459644978,0.6667,2494.5,2494.4,10.01225773]
[1747459649615,0.6667,2494.5,2494.4,10.17133638]
[1747459650210,0.6667,2494.5,2494.4,25.89933638]
[1747459652514,0.6667,2494.5,2494.4,25.26302177]
[1747459654889,0.6667,2494.5,2494.4,25.89933638]
[1747459660396,0.6667,2494.5,2494.4,10.17133638]
[1747459660594,0.6667,2494.5,2494.4,25.88833638]
[1747459663492,0.6667,2494.5,2494.4,25.88733638]
[1747459665227,0.6667,2494.5,2494.4,10.17133638]
[1747459665424,0.6667,2494.5,2494.4,9.39913638]
[1747459665624,0.6667,2494.5,2494.4,16.07182177]
[1747459665830,0.6667,2494.5,2494.4,13.85798011]
[1747459669429,0.6667,2494.5,2494.4,5.99898011]
[1747459669621,0.6667,2494.5,2494.4,13.85798011]
[1747459669932,0.6667,2494.5,2494.4,14.40798011]
[1747459670122,0.6667,2494.5,2494.4,17.03508961]
[1747459671101,0.6667,2494.5,2494.4,17.67549511]
[1747459671932,0.6667,2494.5,2494.4,18.43909511]
[1747459674034,0.6667,2494.5,2494.4,17.79868961]
[1747459678141,0.6667,2494.5,2494.4,25.79868961]
[1747459686334,0.6667,2494.5,2494.4,33.64568961]
[1747459689564,0.6667,2494.5,2494.4,50.95268961]
[1747459692437,0.7608,2495.4,2495.3,4.00753416]
[1747459692639,0.7608,2495.4,2495.3,31.14953416]
[1747459693662,0.7608,2495.4,2495.3,27.142]
[1747459694756,0.7608,2495.4,2495.3,31.14953416]
[1747459697661,0.7608,2495.4,2495.3,27.142]
[1747459697833,0.7608,2495.4,2495.3,31.14953416]
[1747459698653,0.7608,2495.4,2495.3,23.30353416]
[1747459698861,0.7608,2495.4,2495.3,31.14953416]
[1747459700142,0.7608,2495.4,2495.3,19.296]
[1747459700539,0.7608,2495.4,2495.3,27.142]
[1747459700867,4.76817356,2495.4,2495.3,27.142]
[1747459701064,4.76817356,2495.4,2495.3,19.296]
[1747459701269,1.6383387,2495.4,2495.3,27.142]
[1747459701448,0.7608,2495.4,2495.3,27.142]
[1747459702643,0.7608,2495.4,2495.3,31.14953416]
[1747459702965,0.8039,2495.8,2495.5,4.00718645]
[1747459703767,4.81068311,2495.8,2495.3,31.14943671]
[1747459704349,4.81068311,2495.8,2495.4,4.00736569]
[1747459704666,0.8039,2495.8,2495.4,4.00736569]
[1747459705875,0.8039,2495.8,2495.4,6.63447519]
[1747459706273,4.81068083,2495.8,2495.4,2.6271095]
[1747459707177,0.8039,2495.8,2495.4,6.63448222]
[1747459707373,4.00673699,2495.8,2495.4,2.6271095]
[1747459707556,0.7656,2495.7,2495.5,7.845]
[1747459707889,0.7656,2495.7,2495.6,1.99]
[1747459713846,0.7656,2495.7,2495.6,9.835]
[1747459714989,4.77249185,2495.7,2495.6,1.99]
[1747459715187,4.77249185,2495.7,2495.6,9.835]
[1747459715792,0.7656,2495.7,2495.6,9.835]
[1747459717395,4.77249185,2495.7,2495.6,9.835]
[1747459717795,0.7656,2495.7,2495.6,9.835]
[1747459718684,5.6914919,2495.7,2495.6,1.99]
[1747459718888,5.6914919,2495.7,2495.6,9.821]
[1747459719297,0.8067,2496.3,2495.6,9.821]
[1747459719463,0.8067,2496.3,2495.7,4.04683056]
[1747459719464,4.81263811,2496.3,2495.7,4.04683056]
[1747459719807,4.00619167,2496.2,2495.8,9.821]
[1747459720097,4.81270988,2496.3,2495.8,13.82771827]
[1747459722194,4.00610977,2496.2,2495.8,9.821]
[1747459723067,4.00611258,2496.2,2495.8,9.821]
[1747459723395,0.8067,2496.1,2495.9,7.831]
[1747459723999,0.8067,2496.1,2496.0,1.99]
[1747459724177,0.8067,2496.1,2496.0,9.821]
[1747459724378,4.81294974,2496.1,2496.0,9.821]
[1747459725186,0.8067,2496.1,2496.0,9.821]
[1747459725501,0.8067,2496.4,2496.0,10.8031]
[1747459725687,4.00600103,2496.3,2496.0,9.821]
[1747459726298,4.00615937,2496.2,2496.0,1.99]
[1747459726502,4.00615937,2496.2,2496.1,7.831]
[1747459727000,4.76375937,2496.2,2496.1,7.831]
[1747459727698,4.76375937,2496.2,2496.0,1.99]
[1747459727868,4.76375937,2496.2,2496.1,7.831]
[1747459728496,0.7576,2496.2,2496.1,7.831]
[1747459728886,0.7576,2496.2,2496.1,9.821]
[1747459730706,4.00583893,2496.4,2496.1,9.821]
[1747459730707,0.7576,2496.4,2496.1,9.821]
[1747459731902,4.76347985,2496.4,2496.1,9.821]
[1747459733780,4.76347985,2496.4,2496.1,11.20373974]
[1747459736412,4.00593704,2496.3,2496.1,11.20373974]
[1747459736914,4.76346038,2496.4,2496.1,11.20373974]
[1747459738108,4.00595416,2496.3,2496.1,11.20373974]
[1747459738612,4.00608925,2496.2,2496.1,1.99]
[1747459738784,4.00608925,2496.2,2496.1,9.82]
[1747459739167,4.76339091,2496.4,2496.1,9.82]
[1747459739580,0.7576,2496.4,2496.1,9.82]
[1747459740611,4.76338268,2496.4,2496.1,9.82]
[1747459741504,5.14028449,2496.2,2496.1,9.82]
[1747459741878,5.91688449,2496.2,2496.1,9.82]
[1747459742590,5.91688449,2496.2,2496.1,1.99]
[1747459742787,5.91688449,2496.2,2496.1,9.82]
[1747459743105,13.91688449,2496.2,2496.1,1.99]
[1747459743280,15.87506078,2496.2,2496.1,1.99]
[1747459747814,19.87506078,2496.2,2496.1,1.99]
[1747459748776,17.55316677,2496.2,2494.9,0.47957316]
[1747459749110,17.55316677,2496.2,2495.0,7.817]
[1747459749111,4.78402578,2495.4,2495.0,7.817]
[1747459749320,11.82460814,2495.3,2495.1,0.07]
[1747459749679,7.816,2495.4,2495.1,0.07]
[1747459749880,4.00738759,2495.4,2495.1,0.07]
[1747459750080,11.82438759,2495.4,2495.1,0.07]
[1747459751328,4.00754394,2495.3,2495.1,0.07]
[1747459751497,4.00769477,2495.2,2495.1,0.07]
[1747459759826,4.00754313,2495.3,2495.1,0.07]
[1747459761530,11.82052641,2495.4,2495.1,0.07]
[1747459761823,4.00758339,2495.3,2495.1,0.07]
[1747459765449,4.00726684,2495.5,2495.1,0.07]
[1747459765633,7.811,2495.4,2495.1,4.077801]
[1747459766641,11.8182294,2495.5,2495.1,0.07]
[1747459769934,7.809,2495.4,2495.1,0.9032]
[1747459771450,11.81640542,2495.4,2495.1,0.9032]
[1747459772615,11.81640542,2495.4,2495.2,7.819]
[1747459773361,7.809,2495.4,2495.2,7.819]
[1747459773862,7.809,2495.4,2495.3,0.07]
[1747459774363,11.81637356,2495.4,2495.3,0.07]
[1747459775566,13.06466411,2495.4,2495.3,0.07]
[1747459778473,11.81337356,2495.4,2495.3,0.07]
[1747459779631,4.00712281,2495.6,2495.3,0.07]
[1747459779841,8.27797372,2496.1,2495.4,0.7745]
[1747459780056,4.00670084,2495.9,2495.5,0.07]
[1747459780744,4.00675607,2495.8,2495.5,0.07]
[1747459781074,4.00697226,2495.7,2495.6,7.804]
[1747459781763,4.00680874,2495.8,2495.6,7.804]
[1747459781965,0.7631,2495.9,2495.6,7.804]
[1747459781966,7.803,2495.7,2495.6,7.804]
[1747459782975,4.00665817,2495.9,2495.6,7.804]
[1747459782976,11.80966188,2495.9,2495.6,7.874]
[1747459783474,4.00666188,2495.9,2495.6,7.874]
[1747459783671,11.80866188,2495.9,2495.6,7.874]
[1747459784677,11.80857287,2495.9,2495.6,7.874]
[1747459784879,6.01771095,2495.8,2495.7,7.804]
[1747459785483,4.00685366,2495.8,2495.7,7.804]
[1747459788982,4.00685366,2495.8,2495.7,7.874]
[1747459789994,0.83,2496.2,2495.7,7.874]
[1747459790154,4.00645528,2496.0,2495.7,7.874]
[1747459790890,11.80545528,2496.0,2495.7,7.874]
[1747459791064,4.00645528,2496.0,2495.7,7.874]
[1747459791257,4.0064605,2496.0,2495.7,7.874]
[1747459792074,4.00659072,2495.9,2495.7,7.874]
[1747459794755,4.0067313,2495.8,2495.7,7.874]
[1747459795898,4.00665682,2495.9,2495.7,7.874]
[1747459796085,4.0067313,2495.8,2495.7,7.874]
[1747459796386,4.80807011,2495.8,2495.7,7.874]
[1747459796595,5.63917011,2495.8,2495.7,7.873]
[1747459798600,6.77336535,2495.8,2495.7,7.873]
[1747459800198,5.63917011,2495.8,2495.7,7.873]
[1747459800507,11.8017313,2495.8,2495.7,7.873]
[1747459801075,4.0067313,2495.8,2495.7,7.873]
[1747459801264,11.8007313,2495.8,2495.7,7.873]
[1747459802699,11.8007313,2495.8,2495.7,0.07]
[1747459802864,11.8007313,2495.8,2495.7,7.873]
[1747459803065,13.57214964,2495.8,2495.7,7.873]
[1747459803375,14.35164964,2495.8,2495.7,7.873]
[1747459809004,14.35164964,2495.8,2495.7,0.07]
[1747459812411,4.0067313,2495.8,2495.7,0.07]
[1747459812614,11.7967313,2495.8,2495.7,0.07]
[1747459813326,4.0064048,2496.1,2495.7,0.07]
[1747459813620,7.79,2495.9,2495.7,0.07]
[1747459815817,7.79,2495.9,2495.8,0.07]
[1747459816319,4.0061981,2496.2,2495.9,0.8196]
[1747459816618,7.789,2496.2,2496.0,7.791]
[1747459816781,7.788,2496.3,2496.0,7.791]
[1747459816980,7.788,2496.3,2495.9,4.82616203]
[1747459817211,11.79393935,2496.3,2496.0,7.791]
[1747459817380,5.9370005,2496.6,2496.0,7.791]
[1747459817580,4.00570203,2496.5,2496.1,0.7648]
[1747459817882,7.788,2496.5,2496.2,0.07]
[1747459818087,11.79361372,2496.5,2496.2,0.07]
[1747459818292,2.79025743,2496.9,2496.4,0.7648]
[1747459818293,2.01315743,2496.9,2496.4,0.7648]
[1747459818491,2.01315743,2496.9,2496.6,4.00537219]
[1747459818693,2.01315743,2496.9,2496.8,4.76992656]
[1747459819019,2.01315743,2496.9,2496.8,8.5548]
[1747459819514,2.01315743,2496.9,2496.8,11.54830281]
[1747459819680,2.01315743,2496.9,2496.8,15.55342937]
[1747459820428,2.01315743,2496.9,2496.8,16.17342937]
[1747459820983,20.0,2497.0,2496.9,4.76976615]
[1747459821595,20.0,2497.0,2496.9,5.15144077]
[1747459821911,20.0,2497.0,2496.9,6.97237962]
[1747459822882,20.0,2497.0,2496.9,10.20541347]
[1747459823981,24.00480576,2497.0,2496.9,10.20541347]
[1747459824212,24.00480576,2497.0,2496.9,8.93447462]
[1747459824799,24.00480576,2497.0,2496.9,8.6228]
[1747459825127,20.0,2497.0,2496.9,8.6228]
[1747459826115,24.00480576,2497.0,2496.9,8.6228]
[1747459826498,24.00480576,2497.0,2496.9,8.6218]
[1747459826699,26.80573635,2497.0,2496.9,0.07]
[1747459826917,27.93993159,2497.0,2496.9,0.07]
[1747459827295,35.72093159,2497.0,2496.9,0.07]
[1747459827517,36.54773159,2497.0,2496.9,0.07]
[1747459827696,45.68192683,2497.0,2496.9,0.07]
[1747459827897,44.54773159,2497.0,2496.9,0.07]
[1747459828097,45.68192683,2497.0,2496.9,0.07]
[1747459828504,46.23192683,2497.0,2496.9,0.07]
[1747459829435,46.13282981,2497.0,2496.9,0.07]
[1747459829804,50.13282981,2497.0,2496.9,0.07]
[1747459830015,50.13182981,2497.0,2496.9,0.07]
[1747459830230,50.43377653,2497.0,2496.9,0.07]
[1747459831728,49.88377653,2497.0,2496.9,0.07]
[1747459832304,50.43377653,2497.0,2496.9,0.07]
[1747459833302,50.43277653,2497.0,2496.9,0.07]
[1747459834321,31.10768307,2497.0,2496.9,0.07]
[1747459834524,41.81397653,2497.0,2496.9,0.07]
[1747459834827,4.76424974,2496.1,2496.0,17.298]
[1747459835044,12.54324974,2496.1,2496.0,17.298]
[1747459835227,4.00641025,2496.0,2495.9,7.788]
[1747459839053,11.78441025,2496.0,2495.9,7.788]
[1747459840072,4.00641025,2496.0,2495.9,7.788]
[1747459840221,11.78441025,2496.0,2495.9,7.788]
[1747459841161,11.78441025,2496.0,2495.5,0.7583]
[1747459841162,4.00705241,2495.6,2495.5,0.7583]
[1747459841367,4.00705241,2495.6,2495.5,8.5363]
[1747459842240,4.00697362,2495.7,2495.5,8.5363]
[1747459842440,11.78366558,2495.9,2495.5,8.5363]
[1747459842668,11.78366558,2495.9,2495.5,11.52066935]
[1747459842854,4.00666558,2495.9,2495.5,11.52066935]
[1747459843051,4.0064603,2496.0,2495.5,15.52787606]
[1747459843259,4.0057683,2496.4,2495.8,4.0066585]
[1747459843564,4.00613176,2496.2,2495.9,0.7583]
[1747459843761,11.78300647,2496.3,2496.0,7.778]
[1747459843937,4.00609719,2496.2,2496.0,7.778]
[1747459844834,4.00611184,2496.2,2496.0,7.778]
[1747459845850,4.00618261,2496.2,2496.0,7.778]
[1747459846147,4.00624974,2496.1,2496.0,7.778]
[1747459847058,4.00624974,2496.1,2495.9,0.7583]
[1747459847059,4.00641025,2496.0,2495.9,0.7583]
[1747459847270,4.00641025,2496.0,2495.9,7.778]
[1747459847472,4.0067313,2495.8,2495.7,0.81]
[1747459847629,4.0070793,2495.6,2495.5,0.81]
[1747459847969,4.00666691,2495.9,2495.6,0.81]
[1747459848765,4.00674655,2495.8,2495.6,0.81]
[1747459848929,4.00689185,2495.7,2495.6,0.81]
[1747459849132,4.00687264,2495.8,2495.6,0.81]
[1747459849367,4.00689185,2495.7,2495.6,7.778]
[1747459853981,4.00737356,2495.4,2495.3,17.3]
[1747459854145,4.00737356,2495.4,2495.3,25.078]
[1747459854346,4.00693731,2495.7,2495.3,25.078]
[1747459854546,4.00718788,2495.6,2495.3,25.078]
[1747459854772,7.773,2495.7,2495.3,25.078]
[1747459854978,4.00643388,2496.0,2495.4,0.7967]
[1747459855168,4.00675076,2495.8,2495.4,0.7967]
[1747459855548,4.0067313,2495.8,2495.4,1.17946109]
[1747459855750,4.00689185,2495.7,2495.4,1.17946109]
[1747459856151,4.00691357,2495.7,2495.4,1.17946109]
[1747459857387,4.00691357,2495.7,2495.5,0.38276109]
[1747459858501,4.00705241,2495.6,2495.5,0.38276109]
[1747459858884,5.93847137,2495.6,2495.5,7.778]
[1747459859700,5.93847137,2495.6,2495.3,17.77957316]
[1747459859701,4.00737356,2495.4,2495.3,17.77957316]
[1747459859993,13.70839706,2495.4,2495.3,0.47957316]
[1747459860195,23.96080575,2495.4,2495.3,0.47957316]
[1747459860350,16.18880575,2495.4,2495.3,0.47957316]
[1747459860552,23.96080575,2495.4,2495.3,0.47957316]
[1747459861284,25.00231274,2495.4,2495.3,0.47957316]
[1747459861583,25.55231274,2495.4,2495.3,0.47957316]
[1747459861955,29.55231274,2495.4,2495.3,0.47957316]
[1747459862652,8.0,2494.9,2494.6,7.779]
[1747459862849,4.00849801,2494.7,2494.6,7.779]
[1747459863268,4.0088194,2494.5,2494.4,25.083]
[1747459864490,4.0088194,2494.5,2494.4,17.304]
[1747459864674,4.0088194,2494.5,2494.4,25.084]
[1747459865464,4.00868173,2494.6,2494.4,25.084]
[1747459865665,0.7868,2495.0,2494.5,0.7633]
[1747459865867,0.7868,2495.4,2494.5,0.7633]
[1747459866086,7.772,2495.6,2495.0,4.00792927]
[1747459866400,4.0081183,2495.0,2494.5,0.7633]
[1747459866610,4.00825343,2494.9,2494.5,2.51934166]
[1747459866757,4.00817668,2494.9,2494.5,2.51934166]
[1747459866963,4.00836007,2494.8,2494.6,8.16204976]
[1747459867454,4.00790679,2495.1,2494.6,8.16204976]
[1747459867789,7.772,2495.5,2494.9,4.0081599]
[1747459867961,4.00751269,2495.4,2494.9,0.8043]
[1747459868153,4.00755969,2495.3,2494.9,1.68639511]
[1747459869162,7.772,2495.4,2495.0,4.00799141]
[1747459869461,4.00725162,2495.5,2495.1,7.781]
[1747459869663,5.813094,2495.7,2495.2,4.81191742]
[1747459869863,5.813094,2495.7,2495.3,22.57476156]
[1747459870162,5.813094,2495.7,2495.3,18.56729174]
[1747459870862,9.82003284,2495.7,2495.3,18.56729174]
[1747459871163,4.00721972,2495.5,2495.3,17.308]
[1747459871387,4.00737356,2495.4,2495.3,17.308]
[1747459871595,4.00737356,2495.4,2495.3,25.079]
[1747459871910,17.59104884,2495.7,2495.3,25.079]
[1747459872060,5.813094,2495.7,2495.3,27.66733]
[1747459872264,9.82003437,2495.7,2495.3,27.66733]
[1747459872819,4.00706895,2495.6,2495.3,27.66733]
[1747459873119,5.813094,2495.7,2495.3,17.308]
[1747459873265,4.00737356,2495.4,2495.3,17.308]
[1747459873465,4.00737356,2495.4,2495.3,25.079]
[1747459874276,4.00737356,2495.4,2495.3,17.308]
[1747459874471,4.00737356,2495.4,2495.3,25.079]
[1747459874667,5.10341771,2495.4,2495.3,7.771]
[1747459874971,4.00801603,2495.0,2494.9,0.47957316]
[1747459875205,4.00801603,2495.0,2494.9,8.25057316]
[1747459875776,4.00801603,2495.0,2494.9,7.771]
[1747459876291,11.77801603,2495.0,2494.9,7.771]
[1747459876496,13.65118873,2495.0,2494.9,7.771]
[1747459879433,7.769,2495.0,2494.9,7.771]
[1747459879711,4.00822691,2494.9,2494.6,17.307]
[1747459879912,4.00849801,2494.7,2494.6,17.307]
[1747459880083,4.00849801,2494.7,2494.6,25.078]
[1747459881718,11.77749801,2494.7,2494.6,25.078]
[1747459881890,4.00849801,2494.7,2494.6,25.078]
[1747459882422,4.00792635,2495.1,2494.6,31.67480797]
[1747459882618,4.00819288,2494.9,2494.6,27.66623]
[1747459883523,4.00819288,2494.9,2494.6,25.078]
[1747459883927,4.00849801,2494.7,2494.6,17.307]
[1747459884222,4.00849801,2494.7,2494.6,25.079]
[1747459885188,4.00849801,2494.7,2494.6,17.307]
[1747459886431,11.77749801,2494.7,2494.6,17.307]
[1747459886720,13.65158433,2494.7,2494.6,17.307]
[1747459887095,13.65158433,2494.7,2493.9,0.66666667]
[1747459887096,4.0088194,2494.5,2494.4,7.772]
[1747459887290,6.93148919,2494.6,2494.4,7.772]
[1747459887515,5.66627695,2494.5,2494.4,7.772]
[1747459889703,4.00962309,2494.0,2493.9,17.97666667]
[1747459889917,4.00962309,2494.0,2493.9,25.74866667]
[1747459890929,4.00962309,2494.0,2493.9,0.66666667]
[1747459891426,6.18115358,2494.0,2493.9,0.66666667]
[1747459891604,16.05214595,2494.0,2493.9,0.66666667]
[1747459893727,17.39974595,2494.0,2493.9,0.66666667]
[1747459894230,21.39974595,2494.0,2493.9,0.66666667]
[1747459895345,29.17374595,2494.0,2493.9,0.66666667]
[1747459895937,29.63646065,2494.0,2493.9,0.66666667]
[1747459896414,4.01123144,2493.0,2492.9,7.774]
[1747459896732,11.78023144,2493.0,2492.9,7.774]
[1747459896944,13.57651731,2493.0,2492.9,7.774]
[1747459897113,4.01205388,2492.5,2492.4,8.5682]
[1747459897315,4.01235806,2492.3,2492.2,17.79257316]
[1747459897620,4.01235806,2492.3,2492.2,25.56757316]
[1747459898951,4.01209559,2492.5,2492.2,25.56757316]
[1747459899161,4.0114552,2492.9,2492.3,0.7932]
[1747459899452,11.78063778,2492.8,2492.3,4.80543829]
[1747459899821,11.78063778,2492.8,2492.3,0.7932]
[1747459900147,4.01176583,2492.7,2492.3,2.35762126]
[1747459900350,7.769,2492.8,2492.3,2.35762126]
[1747459900560,4.01090967,2493.2,2492.5,4.01196243]
[1747459900716,7.769,2492.9,2492.6,0.7932]